bitfinex/quotes_SOLUSD_20250630
["timestamp","ask_amount","ask_price","bid_price","bid_amount"]
[1751266296894,7.65739572,150.19,150.15,0.28432314]
[1751266297095,7.65739572,150.19,150.15,7.65739572]
[1751266297297,7.65739572,150.19,150.15,87.6]
[1751266297298,7.65739572,150.18,150.15,87.6]
[1751266297475,7.65739572,150.17,150.15,87.6]
[1751266297666,7.65739572,150.16,150.09,9.38]
[1751266297998,7.65739572,150.14,150.09,17.03739572]
[1751266298299,7.65739572,150.14,150.09,7.65739572]
[1751266298793,7.65739572,150.13,150.08,7.65739572]
[1751266299377,12.98628843,150.13,150.07,9.38]
[1751266299574,7.65739572,150.13,150.08,7.65739572]
[1751266299791,7.65739572,150.13,150.09,0.28432314]
[1751266299973,7.65739572,150.13,150.07,14.71083005]
[1751266300200,7.65739572,150.12,150.08,7.65739572]
[1751266300375,7.65739572,150.12,150.05,5.33155614]
[1751266300592,7.65739572,150.1,150.04,14.71175614]
[1751266300794,7.65739572,150.09,150.04,17.03739572]
[1751266300975,6.5112,150.11,150.0,2.047573]
[1751266301187,1.5244,150.1,150.0,2.047573]
[1751266301503,5.33013525,150.09,150.01,7.65739572]
[1751266301681,7.65739572,150.07,150.0,7.38072822]
[1751266301883,5.33013525,150.09,150.0,7.38072822]
[1751266302384,5.33013525,150.09,150.03,7.79955729]
[1751266302592,7.65739572,150.07,150.02,7.65739572]
[1751266303100,32.5112,150.11,150.06,7.65739572]
[1751266303101,14.16859572,150.11,150.06,7.65739572]
[1751266303284,6.5112,150.11,150.07,7.94171886]
[1751266303484,7.65739572,150.11,150.07,0.28432314]
[1751266304203,5.32872805,150.13,150.07,0.28432314]
[1751266304400,7.65739572,150.11,150.07,0.28432314]
[1751266304590,7.65739572,150.1,150.07,0.28432314]
[1751266305105,5.32992279,150.1,150.03,0.28432314]
[1751266305285,7.65739572,150.07,150.03,0.28432314]
[1751266305488,18.65437315,150.1,150.0,2.047573]
[1751266305806,18.65437315,150.1,150.0,9.70496872]
[1751266305988,5.32992279,150.1,150.0,7.38082838]
[1751266306385,7.65739572,150.09,150.01,0.28432314]
[1751266306579,5.32992279,150.1,150.01,0.28432314]
[1751266307104,5.3294258,150.11,150.05,7.65739572]
[1751266307286,7.65739572,150.09,150.03,0.28432314]
[1751266307491,7.65739572,150.09,150.04,7.65739572]
[1751266307725,5.3294258,150.11,150.04,7.65739572]
[1751266307874,7.65739572,150.09,150.04,7.65739572]
[1751266308211,7.65739572,150.09,150.03,0.28432314]
[1751266308502,7.65739572,150.08,150.03,7.65739572]
[1751266308699,5.3294258,150.11,150.05,0.28432314]
[1751266308874,5.33025467,150.09,150.05,0.28432314]
[1751266309079,7.65739572,150.08,150.05,0.28432314]
[1751266309393,5.33025467,150.09,150.05,0.28432314]
[1751266309707,12.98765039,150.09,150.05,0.28432314]
[1751266310016,7.65739572,150.09,150.05,0.28432314]
[1751266310306,7.65739572,150.09,150.05,7.94171886]
[1751266310510,5.32982759,150.1,150.05,0.28432314]
[1751266310810,7.65739572,150.09,150.04,0.28432314]
[1751266310985,5.32942508,150.11,150.04,7.94171886]
[1751266311184,7.65739572,150.08,150.04,7.94171886]
[1751266311602,5.32942508,150.11,150.04,7.94171886]
[1751266311795,7.65739572,150.08,150.04,7.94171886]
[1751266312000,7.65739572,150.08,150.04,0.28432314]
[1751266312199,7.65739572,150.08,150.04,7.94171886]
[1751266312384,5.32984445,150.1,150.04,0.28432314]
[1751266312588,12.98724017,150.1,150.04,0.28432314]
[1751266312788,12.98724017,150.1,150.06,0.28432314]
[1751266312991,5.32984445,150.1,150.06,0.28432314]
[1751266313607,5.32871511,150.13,150.06,0.28432314]
[1751266313804,5.32871511,150.13,150.06,7.94171886]
[1751266314204,7.65739572,150.1,150.06,0.28432314]
[1751266314385,7.65739572,150.1,150.06,7.94171886]
[1751266314710,7.65739572,150.1,150.06,0.28432314]
[1751266315238,5.32871511,150.13,150.06,0.28432314]
[1751266315394,7.65739572,150.1,150.06,0.28432314]
[1751266315592,5.32974326,150.11,150.06,7.94171886]
[1751266315810,5.32974326,150.11,150.05,0.28432314]
[1751266316021,7.65739572,150.1,150.05,0.28432314]
[1751266316203,7.65739572,150.1,150.06,7.65739572]
[1751266316403,11.12837926,150.14,150.07,0.28432314]
[1751266316720,5.80000019,150.14,150.1,0.28432314]
[1751266316886,5.80000019,150.14,150.13,7.94171886]
[1751266317085,5.80000019,150.14,150.13,0.28432314]
[1751266317301,12.98517388,150.16,150.09,5.61445839]
[1751266317501,12.98517388,150.16,150.09,93.21445839]
[1751266317794,12.98517388,150.16,150.12,0.14216157]
[1751266318611,7.65739572,150.15,150.12,0.14216157]
[1751266319817,7.65739572,150.15,150.11,5.11060995]
[1751266319818,5.11060995,150.15,150.11,5.11060995]
[1751266320002,10.43838811,150.16,150.12,0.14216157]
[1751266320316,5.11060995,150.15,150.12,0.14216157]
[1751266320517,5.32777816,150.16,150.12,0.14216157]
[1751266320722,18.64344502,150.19,150.12,0.14216157]
[1751266321302,18.64344502,150.19,150.13,0.14216157]
[1751266321523,0.7,150.18,150.13,0.14216157]
[1751266321904,5.32658632,150.19,150.13,0.14216157]
[1751266322541,5.11060995,150.18,150.13,5.25277152]
[1751266322774,5.11060995,150.18,150.15,0.28432314]
[1751266323607,10.43756221,150.18,150.15,0.28432314]
[1751266323805,5.32695226,150.18,150.15,0.28432314]
[1751266324225,5.11060995,150.16,150.15,0.28432314]
[1751266324627,5.11060995,150.16,150.11,6.351]
[1751266324833,5.11060995,150.14,150.11,0.28432314]
[1751266325130,5.11060995,150.14,150.1,5.11060995]
[1751266325606,5.32800532,150.15,150.11,0.28432314]
[1751266325929,10.43861527,150.15,150.11,0.28432314]
[1751266326100,26.0,150.2,150.11,0.28432314]
[1751266326300,5.32658632,150.19,150.14,0.28432314]
[1751266326509,5.11060995,150.18,150.14,0.28432314]
[1751266326707,5.11060995,150.19,150.14,5.39493309]
[1751266327132,5.32552256,150.22,150.14,5.39493309]
[1751266327334,5.11060995,150.19,150.14,5.39493309]
[1751266327715,5.32552256,150.22,150.14,0.28432314]
[1751266327922,5.32552256,150.22,150.15,0.28432314]
[1751266327923,10.43613251,150.22,150.15,0.28432314]
[1751266328138,10.43613251,150.22,150.18,0.28432314]
[1751266328342,32.40469086,150.25,150.18,5.39493309]
[1751266328537,5.32481363,150.24,150.15,0.28432314]
[1751266328715,5.11060995,150.19,150.15,0.28432314]
[1751266329145,5.11060995,150.18,150.15,0.28432314]
[1751266330122,5.11060995,150.19,150.15,0.28432314]
[1751266331029,5.11060995,150.19,150.15,5.39493309]
[1751266331234,5.32481363,150.24,150.15,5.61231104]
[1751266331434,10.43542358,150.24,150.2,0.28432314]
[1751266331746,6.40469086,150.25,150.21,0.28432314]
[1751266332045,5.11060995,150.23,150.16,0.28432314]
[1751266332340,5.11060995,150.23,150.19,0.28432314]
[1751266333235,5.11060995,150.24,150.19,5.39493309]
[1751266333442,6.40469086,150.25,150.22,5.11060995]
[1751266333615,6.40469086,150.25,150.23,0.28432314]
[1751266333813,6.40469086,150.25,150.21,0.28432314]
[1751266334012,6.40469086,150.25,150.21,5.39493309]
[1751266334944,6.40469086,150.25,150.24,5.11060995]
[1751266335242,5.11060995,150.31,150.25,0.28432314]
[1751266335547,5.11060995,150.32,150.28,5.39493309]
[1751266335748,5.42136565,150.34,150.28,5.39493309]
[1751266335946,5.11060995,150.33,150.28,5.39493309]
[1751266336125,5.11060995,150.33,150.28,0.28432314]
[1751266336319,0.1,150.34,150.33,0.28432314]
[1751266336525,0.1,150.34,150.33,5.39493309]
[1751266337041,0.1,150.34,150.33,0.28432314]
[1751266337346,5.21060995,150.34,150.3,0.28432314]
[1751266337531,0.1,150.34,150.3,0.28432314]
[1751266338043,0.1,150.34,150.32,0.28432314]
[1751266338238,0.1,150.34,150.32,7.92988916]
[1751266338825,0.1,150.34,150.32,0.28432314]
[1751266339230,0.1,150.34,150.33,7.64556602]
[1751266339643,0.1,150.34,150.32,5.60609597]
[1751266340222,0.1,150.34,150.33,7.64556602]
[1751266341451,0.1,150.34,150.33,0.28432314]
[1751266342336,0.1,150.34,150.33,7.92988916]
[1751266342930,0.1,150.34,150.33,26.57953802]
[1751266343526,0.1,150.34,150.33,31.90116377]
[1751266343837,0.1,150.34,150.33,57.90116377]
[1751266344834,0.1,150.38,150.33,73.39165694]
[1751266345035,0.1,150.38,150.37,40.39830404]
[1751266345235,0.1,150.38,150.37,42.63273802]
[1751266345451,0.1,150.38,150.37,34.987172]
[1751266345627,0.1,150.38,150.37,47.95294816]
[1751266345954,0.1,150.38,150.37,29.3032993]
[1751266346342,0.1,150.38,150.37,47.95294816]
[1751266347138,0.1,150.38,150.37,40.30738214]
[1751266347343,0.1,150.38,150.37,47.95294816]
[1751266349252,0.1,150.38,150.37,40.30738214]
[1751266349455,0.1,150.38,150.37,47.95294816]
[1751266350674,0.1,150.38,150.37,40.30738214]
[1751266350974,0.1,150.38,150.37,47.95294816]
[1751266352570,0.1,150.41,150.4,44.64964886]
[1751266352874,0.1,150.41,150.4,52.57953802]
[1751266354065,0.1,150.41,150.4,57.89868695]
[1751266355466,0.1,150.41,150.4,50.25312093]
[1751266355776,0.1,150.41,150.4,57.89868695]
[1751266357257,0.1,150.41,150.4,92.50318695]
[1751266357943,0.1,150.45,150.44,44.64964886]
[1751266358247,0.1,150.45,150.44,57.89727266]
[1751266360173,0.1,150.48,150.45,18.933972]
[1751266360345,0.1,150.48,150.47,52.57953802]
[1751266360673,0.1,150.48,150.47,60.22510404]
[1751266360972,0.1,150.48,150.47,52.57953802]
[1751266361147,0.1,150.48,150.47,44.933972]
[1751266361342,0.1,150.48,150.47,52.57953802]
[1751266361958,5.31308287,150.58,150.48,0.28432314]
[1751266362168,12.95864889,150.58,150.51,0.28432314]
[1751266362670,5.31308287,150.58,150.51,0.28432314]
[1751266362855,7.64556602,150.57,150.53,0.28432314]
[1751266363372,5.31308287,150.58,150.53,0.28432314]
[1751266363578,7.64556602,150.58,150.53,13.24443197]
[1751266364366,6.2601,150.59,150.54,26.29521488]
[1751266364551,7.64556602,150.58,150.54,0.28432314]
[1751266364751,11.57255935,150.59,150.54,0.28432314]
[1751266364970,7.64556602,150.57,150.54,0.28432314]
[1751266366385,5.31283064,150.58,150.54,0.28432314]
[1751266366551,7.64556602,150.57,150.54,0.28432314]
[1751266366969,7.64556602,150.57,150.5,26.0]
[1751266367153,5.31283064,150.58,150.52,0.28432314]
[1751266367360,7.64556602,150.56,150.52,7.64556602]
[1751266367558,7.64556602,150.57,150.53,0.28432314]
[1751266367859,5.31283064,150.58,150.53,0.28432314]
[1751266368065,6.2601,150.59,150.55,0.28432314]
[1751266368259,13.90566602,150.59,150.55,0.28432314]
[1751266368674,6.2601,150.59,150.55,0.28432314]
[1751266368882,13.90566602,150.59,150.55,0.28432314]
[1751266369253,19.21814429,150.59,150.55,0.28432314]
[1751266369467,11.57257827,150.59,150.55,0.28432314]
[1751266369753,0.1,150.57,150.55,0.28432314]
[1751266370369,0.1,150.57,150.54,0.28432314]
[1751266371174,5.18084632,150.57,150.53,0.28432314]
[1751266371375,5.08084632,150.54,150.5,5.08084632]
[1751266371869,7.62670539,150.53,150.48,35.5]
[1751266372071,7.62670539,150.53,150.48,43.12670539]
[1751266372380,7.62670539,150.53,150.49,0.28432314]
[1751266372680,7.62670539,150.51,150.45,18.64964886]
[1751266372865,7.62670539,150.5,150.46,7.62670539]
[1751266373061,5.31422909,150.54,150.46,33.62670539]
[1751266373269,7.62670539,150.5,150.46,33.62670539]
[1751266373955,7.62670539,150.5,150.47,0.28432314]
[1751266374151,12.94240474,150.5,150.47,0.28432314]
[1751266374677,7.62670539,150.5,150.47,0.28432314]
[1751266374973,12.94237196,150.5,150.47,0.28432314]
[1751266375968,12.94237196,150.5,150.46,7.62670539]
[1751266376184,12.94237196,150.5,150.47,0.28432314]
[1751266377090,7.62670539,150.5,150.47,0.28432314]
[1751266377668,12.9424213,150.5,150.47,0.28432314]
[1751266378186,12.9424213,150.5,150.46,0.28432314]
[1751266380584,7.62670539,150.48,150.45,9.5]
[1751266380764,7.62670539,150.47,150.45,9.5]
[1751266380969,7.62670539,150.46,150.42,18.64964886]
[1751266381182,7.62670539,150.46,150.39,1.5597]
[1751266381183,26.0,150.47,150.39,7.62670539]
[1751266381378,26.0,150.47,150.41,7.62670539]
[1751266381579,7.62670539,150.46,150.42,7.62670539]
[1751266381980,7.62670539,150.46,150.41,7.62670539]
[1751266382568,7.62670539,150.46,150.42,0.28432314]
[1751266382895,7.62670539,150.45,150.42,87.88432314]
[1751266383393,7.62670539,150.44,150.42,87.6]
[1751266383572,7.62670539,150.46,150.42,87.6]
[1751266383976,7.62670539,150.45,150.42,87.6]
[1751266385493,7.62670539,150.46,150.42,87.6]
[1751266385699,7.62670539,150.46,150.42,95.22670539]
[1751266385996,7.62670539,150.46,150.42,87.6]
[1751266386395,7.62670539,150.45,150.42,87.6]
[1751266386896,7.62670539,150.46,150.42,92.91839593]
[1751266387196,7.62670539,150.46,150.42,87.6]
[1751266388578,7.62670539,150.46,150.42,95.22670539]
[1751266388875,7.62670539,150.49,150.45,7.91102853]
[1751266389295,7.62670539,150.5,150.45,7.91102853]
[1751266389501,7.62670539,150.5,150.46,7.62670539]
[1751266389798,5.31529028,150.51,150.46,7.62670539]
[1751266389991,7.62670539,150.51,150.45,0.28432314]
[1751266390408,7.62670539,150.5,150.46,7.62670539]
[1751266390618,7.62670539,150.51,150.46,7.62670539]
[1751266391205,7.62670539,150.51,150.46,12.94356305]
[1751266391437,7.62670539,150.51,150.46,5.31685766]
[1751266391614,12.94200739,150.51,150.46,12.94356305]
[1751266391925,12.94201282,150.51,150.46,12.94356305]
[1751266392214,7.62670539,150.51,150.46,12.94356305]
[1751266392519,7.62670539,150.51,150.47,7.91102853]
[1751266392717,32.93596116,150.53,150.47,7.91102853]
[1751266392911,7.62670539,150.51,150.47,95.51102853]
[1751266393320,7.62670539,150.51,150.47,100.82749974]
[1751266393835,7.62670539,150.51,150.47,93.20079435]
[1751266393836,5.08600657,150.51,150.47,93.20079435]
[1751266394136,5.08600657,150.5,150.47,87.88432314]
[1751266394809,5.08600657,150.5,150.47,0.28432314]
[1751266395803,5.08600657,150.51,150.47,10.68689184]
[1751266396523,5.08600657,150.51,150.47,0.28432314]
[1751266397111,5.08600657,150.51,150.47,5.37032971]
[1751266397302,5.08600657,150.52,150.47,10.68677364]
[1751266397717,5.3146648,150.53,150.47,10.68677364]
[1751266397940,5.08600657,150.52,150.47,10.68677364]
[1751266398231,5.08600657,150.52,150.47,5.60076707]
[1751266398438,5.08600657,150.52,150.47,10.68677364]
[1751266398909,5.08600657,150.52,150.48,5.08600657]
[1751266399332,5.08600657,150.53,150.48,5.08600657]
[1751266400414,5.08600657,150.53,150.48,10.40210859]
[1751266401529,5.31432554,150.54,150.48,10.40210859]
[1751266401840,5.08600657,150.54,150.5,5.08600657]
[1751266402215,5.31393476,150.55,150.49,5.37032971]
[1751266402413,5.08600657,150.54,150.49,5.37032971]
[1751266402716,5.08600657,150.54,150.49,10.68612726]
[1751266403538,5.08600657,150.54,150.5,5.08600657]
[1751266404240,5.08600657,150.54,150.49,5.60012069]
[1751266404539,5.08600657,150.54,150.5,5.08600657]
[1751266404937,5.41393476,150.55,150.49,5.60012069]
[1751266405143,5.08600657,150.54,150.49,10.68612726]
[1751266405351,5.08600657,150.54,150.49,5.60012069]
[1751266405551,5.08600657,150.54,150.49,10.68612726]
[1751266405749,5.41393476,150.55,150.49,10.68612726]
[1751266405948,5.08600657,150.54,150.49,10.68612726]
[1751266407236,10.40032955,150.54,150.49,5.37032971]
[1751266407550,10.40032955,150.54,150.49,0.28432314]
[1751266407851,5.08600657,150.53,150.49,5.37032971]
[1751266409366,10.40032955,150.54,150.49,10.68625868]
[1751266410347,5.08600657,150.53,150.48,31.08600657]
[1751266410557,10.40072478,150.53,150.48,31.08600657]
[1751266410759,10.40072478,150.53,150.48,36.40228819]
[1751266411064,10.40072478,150.53,150.48,31.31628162]
[1751266411268,5.08600657,150.53,150.49,5.08600657]
[1751266411776,5.08600657,150.54,150.5,5.08600657]
[1751266412131,10.50012062,150.55,150.5,5.08600657]
[1751266412334,0.1,150.55,150.49,20.515372]
[1751266412568,0.1,150.55,150.51,5.08600657]
[1751266412971,0.1,150.55,150.51,10.40113447]
[1751266415067,5.41415144,150.55,150.49,25.83129592]
[1751266415260,5.08600657,150.53,150.49,30.91730249]
[1751266415585,5.08600657,150.54,150.49,30.91730249]
[1751266416272,5.08600657,150.53,150.49,6.95172971]
[1751266416786,10.40032076,150.54,150.49,12.26766682]
[1751266417163,0.1,150.55,150.5,5.08600657]
[1751266417164,5.41397315,150.55,150.5,5.08600657]
[1751266417360,5.08600657,150.54,150.5,5.08600657]
[1751266417787,10.49997972,150.55,150.5,5.08600657]
[1751266417993,5.08600657,150.54,150.5,5.08600657]
[1751266418401,5.41397315,150.55,150.5,10.40155119]
[1751266418701,10.49997972,150.55,150.5,10.40155119]
[1751266419198,0.1,150.55,150.51,0.28432314]
[1751266419384,5.18600657,150.55,150.51,5.37032971]
[1751266419892,5.18600657,150.55,150.51,0.28432314]
[1751266420099,5.18600657,150.55,150.51,5.37032971]
[1751266420508,5.18600657,150.55,150.51,0.28432314]
[1751266422906,5.18600657,150.55,150.51,5.37032971]
[1751266423090,0.1,150.55,150.51,5.37032971]
[1751266423283,5.18600657,150.55,150.51,5.37032971]
[1751266423811,5.08600657,150.54,150.49,1.5814]
[1751266424019,5.08600657,150.51,150.47,0.2]
[1751266424220,5.08600657,150.5,150.47,0.2]
[1751266424430,5.08600657,150.48,150.47,0.2]
[1751266425015,10.40232767,150.48,150.47,0.2]
[1751266426415,5.3163211,150.48,150.47,0.2]
[1751266426630,10.40232767,150.48,150.47,0.2]
[1751266429753,15.48833424,150.48,150.47,0.2]
[1751266430126,48.01693424,150.48,150.41,0.2]
[1751266430346,5.08600657,150.42,150.41,0.2]
[1751266431443,10.40444826,150.42,150.41,0.2]
[1751266434143,5.31844169,150.42,150.41,0.2]
[1751266434349,10.40444826,150.42,150.41,0.2]
[1751266439440,34.14010369,150.42,150.4,0.2]
[1751266439758,11.69251314,150.41,150.39,0.2]
[1751266440057,15.49116207,150.4,150.39,0.2]
[1751266440431,34.14081093,150.4,150.39,0.2]
[1751266442545,5.31914893,150.4,150.39,0.2]
[1751266442746,34.14081093,150.4,150.39,0.2]
[1751266443184,34.14081093,150.4,150.34,0.2]
[1751266443185,18.64964886,150.39,150.34,0.2]
[1751266443475,5.08600657,150.36,150.34,0.2]
[1751266444363,49.73565543,150.36,150.34,0.2]
[1751266444554,10.40692442,150.35,150.34,0.2]
[1751266445378,5.08600657,150.35,150.34,0.2]
[1751266446676,10.40692442,150.35,150.34,0.2]
[1751266447061,5.08600657,150.35,150.34,0.2]
[1751266448757,10.40692442,150.35,150.34,0.2]
[1751266452279,5.32091785,150.35,150.34,0.2]
[1751266452475,10.40692442,150.35,150.34,0.2]
[1751266453361,29.05657328,150.35,150.34,0.2]
[1751266453876,29.34089642,150.35,150.34,0.2]
[1751266454198,35.77899642,150.35,150.34,0.2]
[1751266454381,36.40692442,150.35,150.34,0.2]
[1751266455378,10.40692442,150.35,150.34,0.2]
[1751266460396,55.05657328,150.35,150.34,0.2]
[1751266460696,85.89657328,150.35,150.34,0.2]
[1751266461489,80.81056671,150.35,150.34,0.2]
[1751266463386,36.40692442,150.35,150.34,0.2]
[1751266464308,31.32091785,150.35,150.34,0.2]
[1751266464514,36.40692442,150.35,150.34,0.2]
[1751266464811,5.08600657,150.37,150.34,0.2]
[1751266465402,5.08600657,150.36,150.34,0.2]
[1751266465801,5.31950262,150.39,150.34,0.2]
[1751266466013,5.08600657,150.37,150.34,0.2]
[1751266466178,5.08600657,150.36,150.34,0.2]
[1751266466687,5.32043005,150.37,150.34,0.2]
[1751266467007,5.08600657,150.36,150.34,0.2]
[1751266467597,5.31950262,150.39,150.34,0.2]
[1751266467896,5.08600657,150.37,150.34,0.2]
[1751266468692,5.08600657,150.38,150.34,0.2]
[1751266468887,26.1,150.4,150.34,5.80555637]
[1751266469112,0.1,150.4,150.39,5.08600657]
[1751266469279,0.1,150.4,150.39,87.88432314]
[1751266469622,0.1,150.4,150.39,53.6880026]
[1751266469909,0.1,150.4,150.39,58.77400917]
[1751266473920,0.1,150.4,150.39,53.6880026]
[1751266474096,0.1,150.4,150.39,58.77400917]
[1751266475823,0.1,150.4,150.39,53.6880026]
[1751266476001,10.5051555,150.4,150.35,55.3181026]
[1751266476196,5.08600657,150.38,150.35,55.3181026]
[1751266476816,5.41914893,150.4,150.35,55.3181026]
[1751266476817,5.08600657,150.37,150.35,53.6880026]
[1751266476993,5.08600657,150.36,150.35,53.6880026]
[1751266477194,5.08600657,150.36,150.34,0.2]
[1751266478404,5.08600657,150.35,150.34,0.2]
[1751266480303,5.41931721,150.4,150.34,5.52123664]
[1751266480550,0.1,150.4,150.34,59.20923924]
[1751266480752,5.08600657,150.39,150.35,5.08600657]
[1751266482462,5.08600657,150.39,150.34,64.29524581]
[1751266483657,5.41915823,150.4,150.34,64.29524581]
[1751266483867,0.1,150.4,150.35,5.08600657]
[1751266484154,5.18600657,150.4,150.35,5.08600657]
[1751266484827,5.18600657,150.4,150.34,59.20923924]
[1751266485028,5.18600657,150.4,150.35,5.08600657]
[1751266485452,0.1,150.4,150.35,5.08600657]
[1751266485629,5.18600657,150.4,150.35,5.08600657]
[1751266486149,5.08600657,150.39,150.35,5.08600657]
[1751266486652,5.08600657,150.39,150.35,10.60689424]
[1751266487036,5.08600657,150.39,150.35,0.2]
[1751266487356,5.08600657,150.37,150.35,0.2]
[1751266487559,5.08600657,150.36,150.35,0.2]
[1751266487928,10.40657054,150.36,150.35,0.2]
[1751266488661,5.31985636,150.38,150.35,0.2]
[1751266488830,5.08600657,150.36,150.35,0.2]
[1751266490241,5.31950262,150.39,150.35,0.2]
[1751266490552,5.08600657,150.36,150.35,0.2]
[1751266490771,5.31950262,150.39,150.35,0.2]
[1751266491050,5.08600657,150.36,150.35,0.2]
[1751266492148,5.31957472,150.39,150.35,0.2]
[1751266492332,5.08600657,150.38,150.35,0.2]
[1751266494058,5.08600657,150.37,150.35,0.2]
[1751266495833,5.3196055,150.39,150.35,0.2]
[1751266496043,5.08600657,150.38,150.35,0.2]
[1751266496244,5.3196055,150.39,150.35,0.2]
[1751266496445,5.08600657,150.38,150.35,0.2]
[1751266497160,5.08600657,150.37,150.35,0.2]
[1751266497451,5.3196055,150.39,150.35,0.2]
[1751266497654,5.08600657,150.37,150.35,0.2]
[1751266499055,5.31950262,150.39,150.35,0.2]
[1751266499276,5.08600657,150.38,150.35,0.2]
[1751266500432,5.08600657,150.37,150.35,0.2]
[1751266502359,5.31950262,150.39,150.35,0.2]
[1751266502546,5.08600657,150.37,150.35,0.2]
[1751266502940,5.08600657,150.36,150.35,0.2]
[1751266504279,10.40657054,150.36,150.35,0.2]
[1751266507075,5.32032819,150.37,150.35,0.2]
[1751266507367,5.08600657,150.36,150.35,0.2]
[1751266507971,23.73565543,150.36,150.35,0.2]
[1751266508362,23.97021283,150.36,150.35,0.2]
[1751266508565,29.0562194,150.36,150.35,0.2]
[1751266509276,10.40657054,150.36,150.35,0.2]
[1751266509479,5.32056397,150.36,150.35,0.2]
[1751266509691,5.08600657,150.36,150.35,0.2]
[1751266509854,26.0,150.38,150.35,0.2]
[1751266510058,31.08600657,150.38,150.35,0.2]
[1751266510250,10.40550919,150.39,150.35,0.2]
[1751266510456,5.41925217,150.4,150.35,5.28600657]
[1751266510689,0.1,150.4,150.36,5.08600657]
[1751266510992,0.1,150.4,150.37,5.08600657]
[1751266511288,0.1,150.4,150.38,5.08600657]
[1751266511880,0.1,150.4,150.39,5.08600657]
[1751266512082,0.1,150.4,150.39,5.37032971]
[1751266512788,0.1,150.4,150.38,10.40577442]
[1751266513204,0.1,150.4,150.36,5.60481026]
[1751266513402,0.1,150.4,150.36,10.69081683]
[1751266513804,0.1,150.4,150.37,5.08600657]
[1751266514794,0.1,150.4,150.39,5.37032971]
[1751266515486,0.1,150.4,150.39,24.01997857]
[1751266515691,0.1,150.4,150.39,37.33468514]
[1751266515907,0.1,150.42,150.41,44.64964886]
[1751266516096,0.1,150.42,150.41,50.01997857]
[1751266516796,0.1,150.42,150.41,31.60311843]
[1751266517303,0.1,150.42,150.41,36.689125]
[1751266517705,0.1,150.42,150.41,26.28432314]
[1751266518016,0.1,150.42,150.41,5.37032971]
[1751266518425,0.1,150.42,150.41,0.28432314]
[1751266518619,0.1,150.42,150.41,10.689125]
[1751266519918,0.1,150.46,150.43,26.0]
[1751266520127,0.1,150.46,150.45,5.37032971]
[1751266520324,0.1,150.46,150.45,24.01997857]
[1751266520826,0.1,150.46,150.45,63.58775975]
[1751266524152,0.1,150.46,150.45,37.58775975]
[1751266525525,0.1,150.46,150.45,273.28775975]
[1751266526137,0.1,150.47,150.46,106.433972]
[1751266526337,0.1,150.55,150.51,0.14216157]
[1751266526554,0.1,150.55,150.53,5.08600657]
[1751266527847,0.1,150.55,150.5,106.14964886]
[1751266528149,5.08600657,150.52,150.48,87.5]
[1751266528945,5.08600657,150.52,150.49,0.28432314]
[1751266529150,0.1,150.53,150.49,0.28432314]
[1751266529456,0.1,150.53,150.49,10.6862667]
[1751266529827,0.1,150.53,150.49,13.22699246]
[1751266531222,0.1,150.53,150.5,7.62673233]
[1751266531557,0.1,150.53,150.49,13.22699246]
[1751266532329,0.1,150.53,150.51,7.62673233]
[1751266532938,0.1,150.53,150.52,0.28432314]
[1751266533351,0.1,150.53,150.52,7.91105547]
[1751266533680,0.1,150.53,150.52,13.22596378]
[1751266534360,0.1,150.53,150.52,31.87561264]
[1751266535167,0.1,150.53,150.52,67.43731264]
[1751266535550,0.1,150.55,150.52,67.43731264]
[1751266535551,0.1,150.55,150.54,44.933972]
[1751266535850,0.1,150.55,150.54,57.87490653]
[1751266536057,0.1,150.55,150.54,145.37490653]
[1751266536581,0.1,150.57,150.56,0.28432314]
[1751266536742,0.1,150.64,150.59,44.64964886]
[1751266536945,0.1,150.64,150.59,140.06070433]
[1751266537147,0.1,150.64,150.59,44.933972]
[1751266537474,0.1,150.64,150.59,52.56070433]
[1751266537782,0.1,150.64,150.59,57.87314207]
[1751266538266,0.1,150.64,150.59,50.24640974]
[1751266538470,0.1,150.64,150.59,57.87314207]
[1751266538768,5.41069132,150.64,150.59,57.87314207]
[1751266539066,0.1,150.64,150.59,57.87314207]
[1751266539362,0.1,150.64,150.59,50.24640974]
[1751266540149,13.03750497,150.64,150.59,33.91105547]
[1751266540350,5.41077264,150.64,150.59,39.22349321]
[1751266540551,0.1,150.64,150.59,39.22349321]
[1751266541688,0.1,150.64,150.59,57.87314207]
[1751266542571,0.1,150.64,150.59,145.37314207]